fUSD/lending_fUSD_20260217
["ID","MTS","AMOUNT","RATE_DAILY","PERIOD"]
[405838600,1771351839955,-9999.99,7.692e-05,2]
[405838601,1771351839965,-9999.99,7.692e-05,2]
[405838602,1771351839975,-274.73,7.692e-05,2]
[405838603,1771351839985,-999.99,7.692e-05,2]
[405838604,1771351839994,-9999.99,7.692e-05,2]
[405838605,1771351840004,-20005.55,7.692e-05,2]
[405838606,1771351840013,-150.99,7.692e-05,2]
[405838607,1771351840023,-166.66,7.701e-05,2]
[405838608,1771351840032,-500.0,7.879e-05,2]
[405838609,1771351840042,-166.66,7.955e-05,2]
[405838610,1771351840051,-166.66,8.209e-05,2]
[405838611,1771351840060,-500.0,8.219e-05,2]
[405838612,1771351840076,-500.0,8.219e-05,2]
[405838613,1771351840086,-150.0,8.219e-05,2]
[405838614,1771351840096,-500.0,8.219e-05,2]
[405838615,1771351840106,-150.0,8.219e-05,2]
[405838616,1771351840116,-150.0,8.219e-05,2]
[405838617,1771351840125,-500.0,8.219e-05,2]
[405838618,1771351840135,-500.0,8.219e-05,2]
[405838619,1771351840144,-500.0,8.219e-05,2]
[405838620,1771351840154,-500.0,8.219e-05,2]
[405838621,1771351840163,-500.0,8.219e-05,2]
[405838622,1771351840172,-150.0,8.219e-05,2]
[405838623,1771351840181,-546.0,8.219e-05,2]
[405838624,1771351840191,-201.09695119,8.219e-05,2]
[405838625,1771351840201,-500.0,8.219e-05,2]
[405838626,1771351840210,-500.0,8.219e-05,2]
[405838627,1771351840219,-500.0,8.219e-05,2]
[405838628,1771351840229,-500.0,8.219e-05,2]
[405838629,1771351840239,-572.03500068,8.219e-05,2]
[405838630,1771351840248,-500.0,8.219e-05,2]
[405838631,1771351840257,-587.0,8.224e-05,2]
[405838632,1771351840267,-433.0,8.224e-05,2]
[405838633,1771351840277,-2351.0,8.224e-05,2]
[405838634,1771351840287,-772.07,8.269e-05,2]
[405838635,1771351840297,-510.76125773,8.274e-05,2]
[405838636,1771351840306,-500.0,8.274e-05,2]
[405838637,1771351840318,-150.0,8.274e-05,2]
[405838638,1771351840328,-500.0,8.274e-05,2]
[405838639,1771351840338,-500.0,8.274e-05,2]
[405838640,1771351840347,-500.0,8.274e-05,2]
[405838641,1771351840356,-500.0,8.274e-05,2]
[405838642,1771351840365,-500.0,8.274e-05,2]
[405838643,1771351840375,-500.0,8.274e-05,2]
[405838644,1771351840384,-150.0,8.274e-05,2]
[405838645,1771351840393,-546.0,8.274e-05,2]
[405838646,1771351840403,-500.0,8.274e-05,2]
[405838647,1771351840412,-500.0,8.329e-05,2]
[405838648,1771351840422,-237.18600864,8.329e-05,2]
[405838649,1771351840431,-500.0,8.329e-05,2]
[405838650,1771351840442,-500.0,8.329e-05,2]
[405838651,1771351840452,-500.0,8.329e-05,2]
[405838652,1771351840461,-500.0,8.329e-05,2]
[405838653,1771351840471,-500.0,8.329e-05,2]
[405838654,1771351840481,-500.0,8.329e-05,2]
[405838655,1771351840490,-150.0,8.329e-05,2]
[405838656,1771351840500,-546.0,8.329e-05,2]
[405838657,1771351840512,-500.0,8.329e-05,2]
[405838658,1771351840522,-500.0,8.383e-05,2]
[405838659,1771351840532,-500.0,8.383e-05,2]
[405838660,1771351840542,-500.0,8.383e-05,2]
[405838661,1771351840553,-500.0,8.383e-05,2]
[405838662,1771351840566,-500.0,8.383e-05,2]
[405838663,1771351840578,-500.0,8.383e-05,2]
[405838664,1771351840588,-500.0,8.383e-05,2]
[405838665,1771351840599,-166.5683879,8.383e-05,2]
[405838666,1771351840609,-546.0,8.383e-05,2]
[405838667,1771351840619,-500.33776257,8.383e-05,2]
[405838668,1771351840629,-500.0,8.438e-05,2]
[405838669,1771351840639,-471.12228144,8.438e-05,2]
[405838670,1771351840650,-500.0,8.438e-05,2]
[405838671,1771351840660,-500.0,8.438e-05,2]
[405838672,1771351840670,-464.38268717,8.438e-05,2]
[405838673,1771351840681,-500.0,8.438e-05,2]
[405838674,1771351840692,-500.0,8.438e-05,2]
[405838675,1771351840703,-546.0,8.438e-05,2]
[405838676,1771351840714,-166.66,8.463e-05,2]
[405838677,1771351840724,-500.0,8.493e-05,2]
[405838678,1771351840734,-500.0,8.493e-05,2]
[405838679,1771351840744,-500.0,8.493e-05,2]
[405838680,1771351840754,-500.0,8.493e-05,2]
[405838681,1771351840764,-500.0,8.493e-05,2]
[405838682,1771351840773,-546.0,8.493e-05,2]
[405838683,1771351840783,-500.0,8.493e-05,2]
[405838684,1771351840792,-500.0,8.548e-05,2]
[405838685,1771351840802,-500.0,8.548e-05,2]
[405838686,1771351840811,-500.0,8.548e-05,2]
[405838687,1771351840823,-500.0,8.548e-05,2]
[405838688,1771351840833,-500.0,8.548e-05,2]
[405838689,1771351840843,-546.0,8.548e-05,2]
[405838690,1771351840852,-500.0,8.603e-05,2]
[405838691,1771351840861,-500.0,8.603e-05,2]
[405838692,1771351840871,-500.0,8.603e-05,2]
[405838693,1771351840880,-500.0,8.603e-05,2]
[405838694,1771351840890,-500.0,8.603e-05,2]
[405838695,1771351840899,-546.0,8.603e-05,2]
[405838696,1771351840908,-2752.36,8.653e-05,2]
[405838697,1771351840918,-500.0,8.657e-05,2]
[405838698,1771351840927,-500.0,8.657e-05,2]
[405838699,1771351840937,-500.0,8.657e-05,2]
[405838700,1771351840946,-500.0,8.657e-05,2]
[405838701,1771351840956,-500.0,8.657e-05,2]
[405838702,1771351840967,-546.0,8.657e-05,2]
[405838703,1771351840977,-500.0,8.712e-05,2]
[405838704,1771351840986,-500.0,8.712e-05,2]
[405838705,1771351840998,-500.0,8.712e-05,2]
[405838706,1771351841007,-500.0,8.712e-05,2]
[405838707,1771351841018,-361.9355564,8.712e-05,2]
[405838708,1771351841029,-546.0,8.712e-05,2]
[405838709,1771351841038,-166.66,8.718e-05,2]
[405838710,1771351841048,-250.0,8.729e-05,2]
[405838711,1771351841058,-500.0,8.767e-05,2]
[405838712,1771351841071,-500.0,8.767e-05,2]
[405838713,1771351841085,-500.0,8.767e-05,2]
[405838714,1771351841095,-500.0,8.767e-05,2]
[405838715,1771351841105,-546.0,8.767e-05,2]
[405838716,1771351841115,-500.0,8.767e-05,2]
[405838717,1771351841125,-500.0,8.8e-05,2]
[405838718,1771351841134,-500.0,8.8e-05,2]
[405838719,1771351841145,-500.0,8.8e-05,2]
[405838720,1771351841155,-500.0,8.822e-05,2]
[405838721,1771351841164,-500.0,8.822e-05,2]
[405838722,1771351841173,-500.0,8.822e-05,2]
[405838723,1771351841183,-500.0,8.822e-05,2]
[405838724,1771351841192,-546.0,8.822e-05,2]
[405838725,1771351841203,-500.0,8.855e-05,2]
[405838726,1771351841212,-500.0,8.855e-05,2]
[405838727,1771351841222,-500.87477363,8.855e-05,2]
[405838728,1771351841232,-500.0,8.877e-05,2]
[405838729,1771351841242,-500.0,8.877e-05,2]
[405838730,1771351841251,-500.0,8.877e-05,2]
[405838731,1771351841260,-611.76249723,8.877e-05,2]
[405838732,1771351841272,-546.0,8.877e-05,2]
[405838733,1771351841281,-378.36591542,8.91e-05,2]
[405838734,1771351841292,-500.0,8.91e-05,2]
[405838735,1771351841302,-616.33885806,8.931e-05,2]
[405838736,1771351841311,-500.0,8.931e-05,2]
[405838737,1771351841323,-500.0,8.931e-05,2]
[405838738,1771351841332,-546.0,8.931e-05,2]
[405838739,1771351841342,-500.0,8.964e-05,2]
[405838740,1771351841351,-166.66,8.972e-05,2]
[405838741,1771351841360,-250.0,8.981e-05,2]
[405838742,1771351841370,-500.0,8.986e-05,2]
[405838743,1771351841379,-500.0,8.986e-05,2]
[405838744,1771351841390,-546.0,8.986e-05,2]
[405838745,1771351841400,-500.0,9.019e-05,2]
[405838746,1771351841411,-500.0,9.041e-05,2]
[405838747,1771351841420,-500.0,9.041e-05,2]
[405838748,1771351841430,-546.0,9.041e-05,2]
[405838749,1771351841439,-500.0,9.041e-05,2]
[405838750,1771351841449,-823.0,9.047e-05,2]
[405838751,1771351841458,-736.0,9.047e-05,2]
[405838752,1771351841468,-3292.0,9.047e-05,2]
[405838753,1771351841477,-500.0,9.074e-05,2]
[405838754,1771351841487,-500.0,9.074e-05,2]
[405838755,1771351841497,-500.0,9.074e-05,2]
[405838756,1771351841507,-500.0,9.074e-05,2]
[405838757,1771351841516,-500.0,9.074e-05,2]
[405838758,1771351841526,-150.0,9.074e-05,2]
[405838759,1771351841535,-200.0,9.074e-05,2]
[405838760,1771351841546,-500.0,9.096e-05,2]
[405838761,1771351841556,-481.0942881,9.096e-05,2]
[405838762,1771351841568,-546.0,9.096e-05,2]
[405838763,1771351841577,-491652.74612225,9.128e-05,2]
[405838764,1771351841587,-500.0,9.129e-05,2]
[405838765,1771351841596,-500.0,9.129e-05,2]
[405838766,1771351841606,-500.0,9.129e-05,2]
[405838767,1771351841615,-500.0,9.129e-05,2]
[405838768,1771351841624,-500.0,9.129e-05,2]
[405838769,1771351841634,-150.0,9.129e-05,2]
[405838770,1771351841643,-500.0,9.151e-05,2]
[405838771,1771351841653,-546.0,9.151e-05,2]
[405838772,1771351841662,-500.0,9.184e-05,2]
[405838773,1771351841671,-500.0,9.184e-05,2]
[405838774,1771351841680,-500.0,9.184e-05,2]
[405838775,1771351841690,-329.95129651,9.184e-05,2]
[405838776,1771351841699,-500.0,9.184e-05,2]
[405838777,1771351841708,-150.0,9.184e-05,2]
[405838778,1771351841717,-320.0,9.205e-05,2]
[405838779,1771351841726,-546.0,9.205e-05,2]
[405838780,1771351841735,-500.0,9.238e-05,2]
[405838781,1771351841744,-500.0,9.238e-05,2]
[405838782,1771351841754,-500.0,9.238e-05,2]
[405838783,1771351841765,-500.0,9.238e-05,2]
[405838784,1771351841775,-237.36614029,9.238e-05,2]
[405838785,1771351841785,-546.0,9.26e-05,2]
[405838786,1771351841795,-500.0,9.293e-05,2]
[405838787,1771351841804,-475.49905426,9.293e-05,2]
[405838788,1771351841813,-500.0,9.293e-05,2]
[405838789,1771351841822,-500.0,9.293e-05,2]
[405838790,1771351841831,-546.0,9.315e-05,2]
[405838791,1771351841841,-500.0,9.315e-05,2]
[405838792,1771351841850,-600.0,9.339e-05,2]
[405838793,1771351841859,-500.0,9.348e-05,2]
[405838794,1771351841868,-500.0,9.348e-05,2]
[405838795,1771351841877,-500.0,9.348e-05,2]
[405838796,1771351841887,-493.0,9.348e-05,2]
[405838797,1771351841896,-252.0,9.348e-05,2]
[405838798,1771351841906,-316.57102133,9.366e-05,2]
[405838799,1771351841918,-546.0,9.37e-05,2]
[405838800,1771351841939,-13457.98,9.377e-05,2]
[405838801,1771351841949,-512.26030593,9.403e-05,2]
[405838802,1771351841959,-500.0,9.403e-05,2]
[405838803,1771351841968,-500.0,9.403e-05,2]
[405838804,1771351841977,-546.0,9.424e-05,2]
[405838805,1771351841986,-500.0,9.458e-05,2]
[405838806,1771351841995,-155.81655615,9.458e-05,2]
[405838807,1771351842003,-558.2655769,9.479e-05,2]
[405838808,1771351842012,-500.0,9.512e-05,2]
[405838809,1771351842022,-230.75,9.535e-05,2]
[405838810,1771351842031,-320.05,9.535e-05,2]
[405838811,1771351842040,-500.0,9.567e-05,2]
[405838812,1771351842049,-500.0,9.589e-05,2]
[405838813,1771351842058,-224.65460803,9.622e-05,2]
[405838814,1771351842069,-14381.39,9.67e-05,2]
[405838815,1771351842085,-9999.99,9.67e-05,2]
[405838816,1771351842094,-1401.0,9.67e-05,2]
[405838817,1771351842104,-220.15883999,9.726e-05,2]
[405838818,1771351842115,-500.0,9.726e-05,2]
[405838819,1771351842125,-500.0,9.781e-05,2]
[405838820,1771351842134,-500.0,9.836e-05,2]
[405838821,1771351842146,-500.0,9.863e-05,2]
[405838822,1771351842155,-500.0,9.89e-05,2]
[405838823,1771351842164,-382.17209928,9.945e-05,2]
[405838824,1771351842175,-1152.0,9.951e-05,2]
[405838825,1771351842184,-1252.0,9.951e-05,2]
[405838826,1771351842193,-4609.0,9.951e-05,2]
[405838827,1771351842203,-898.32890406,0.0001,2]
[405838828,1771351842214,-543.19683373,0.0001,2]
[405838829,1771351842223,-543.19683373,0.0001,2]
[405838830,1771351842232,-543.19683373,0.0001,2]
[405838831,1771351842241,-151.0,0.0001,2]
[405838832,1771351842250,-151.0,0.0001,2]
[405838833,1771351842259,-151.0,0.0001,2]
[405838834,1771351842268,-151.0,0.0001,2]
[405838835,1771351842277,-151.0,0.0001,2]
[405838836,1771351842286,-151.0,0.0001,2]
[405838837,1771351842296,-151.0,0.0001,2]
[405838838,1771351842305,-151.0,0.0001,2]
[405838839,1771351842314,-151.0,0.0001,2]
[405838840,1771351842324,-151.0,0.0001,2]
[405838841,1771351842333,-151.0,0.0001,2]
[405838843,1771351842342,-151.0,0.0001,2]
[405838845,1771351842352,-151.0,0.0001,2]
[405838848,1771351842362,-151.0,0.0001,2]
[405838850,1771351842371,-151.0,0.0001,2]
[405838852,1771351842380,-151.0,0.0001,2]
[405838853,1771351842389,-151.0,0.0001,2]
[405838854,1771351842399,-151.0,0.0001,2]
[405838855,1771351842408,-151.0,0.0001,2]
[405838856,1771351842417,-151.0,0.0001,2]
[405838857,1771351842426,-151.0,0.0001,2]
[405838858,1771351842435,-151.0,0.0001,2]
[405838859,1771351842445,-151.0,0.0001,2]
[405838860,1771351842454,-151.0,0.0001,2]
[405838861,1771351842464,-151.0,0.0001,2]
[405838862,1771351842473,-151.0,0.0001,2]
[405838863,1771351842483,-151.0,0.0001,2]
[405838864,1771351842492,-337.0,0.0001,2]
[405838865,1771351842502,-337.0,0.0001,2]
[405838866,1771351842512,-337.85061866,0.0001,2]
[405838867,1771351842522,-840.90433579,0.0001,2]
[405838868,1771351842543,-175.22048755,0.0001,2]
[405838869,1771351842563,-1580.81275906,0.0001,2]
[405838870,1771351842574,-1580.81275906,0.0001,2]
[405838872,1771351842584,-500.0,0.00010137,2]
[405838874,1771351842597,-500.0,0.00010411,2]
[405838876,1771351842608,-500.0,0.00010685,2]
[405838878,1771351842618,-4739.43815662,0.000107,2]
[405838880,1771351842627,-4488.74151019,0.000109,2]
[405838891,1771351842875,-4488.74151012,0.000109,2]
[405838892,1771351842887,-4488.74151012,0.000109,2]
[405838893,1771351842899,-1120.0,0.00010946,2]
[405838894,1771351842912,-6453.0,0.00010946,2]
[405838895,1771351842921,-2129.0,0.0001095,2]
[405838896,1771351842932,-9419.8,0.00010959,2]
[405838897,1771351842945,-150.0,0.00010959,2]
[405838898,1771351842960,-150.0,0.00010959,2]
[405838899,1771351842971,-500.0,0.00010959,2]
[405838900,1771351842982,-41446.46724247,0.00011099,2]
[405838901,1771351842993,-41446.46724243,0.00011099,2]
[405838902,1771351843006,-76805.89310861,0.00011099,2]
[405838903,1771351843020,-76805.89310854,0.00011099,2]
[405838904,1771351843032,-76805.89310854,0.00011099,2]
[405838905,1771351843043,-76805.89310854,0.00011099,2]
[405838906,1771351843055,-500.0,0.00011233,2]
[405838907,1771351843066,-500.0,0.00011507,2]
[405838908,1771351843079,-4488.74151012,0.00011555,2]
[405838909,1771351843089,-150.0,0.00011585,2]
[405838910,1771351843100,-500.0,0.00011781,2]
[405838911,1771351843114,-76805.89310854,0.00011782,2]
[405838912,1771351843123,-583.69347785,0.00011859,2]
[405838913,1771351843132,-153.0,0.00011932,3]
[405838914,1771351843146,-9035.0,0.00012041,2]
[405838915,1771351843157,-3620.0,0.00012044,2]
[405838916,1771351843168,-500.0,0.00012055,2]
[405838917,1771351843180,-214297.0,0.000121,2]
[405838918,1771351843192,-164.61380668,0.00012173,2]
[405838919,1771351843205,-500.0,0.00012173,2]
[405838920,1771351843214,-500.0,0.00012173,2]
[405838921,1771351843224,-500.0,0.00012173,2]
[405838922,1771351843234,-500.0,0.00012173,2]
[405838923,1771351843243,-500.0,0.00012173,2]
[405838924,1771351843254,-500.0,0.00012173,2]
[405838925,1771351843265,-500.0,0.00012173,2]
[405838926,1771351843275,-500.0,0.00012173,2]
[405838927,1771351843286,-500.0,0.00012173,2]
[405838928,1771351843296,-500.0,0.00012173,2]
[405838929,1771351843308,-160.37289206,0.00012173,2]
[405838930,1771351843319,-500.0,0.00012173,2]
[405838931,1771351843329,-500.0,0.00012173,2]
[405838932,1771351843339,-500.0,0.00012173,2]
[405838933,1771351843350,-500.0,0.00012173,2]
[405838934,1771351843362,-500.0,0.00012173,2]
[405838935,1771351843373,-500.0,0.00012173,2]
[405838936,1771351843383,-545.77855618,0.00012173,2]
[405838937,1771351843393,-500.0,0.00012173,2]
[405838938,1771351843404,-500.0,0.00012173,2]
[405838939,1771351843415,-500.0,0.00012173,2]
[405838940,1771351843426,-166.78412047,0.00012173,2]
[405838941,1771351843435,-239.8459294,0.00012173,2]
[405838942,1771351843445,-163.58520611,0.00012173,2]
[405838943,1771351843457,-500.0,0.00012173,2]
[405838944,1771351843466,-500.46642231,0.00012173,2]
[405838945,1771351843476,-160.1837527,0.00012173,2]
[405838946,1771351843486,-500.0,0.00012173,2]
[405838947,1771351843495,-500.0,0.00012173,2]
[405838948,1771351843505,-500.62727143,0.00012173,2]
[405838949,1771351843515,-218.33608313,0.00012173,2]
[405838950,1771351843524,-500.0,0.00012173,2]
[405838951,1771351843534,-500.0,0.00012173,2]
[405838952,1771351843544,-500.0,0.00012173,2]
[405838953,1771351843553,-500.0,0.00012173,2]
[405838954,1771351843562,-500.0,0.00012173,2]
[405838955,1771351843572,-371.04217108,0.00012319,2]
[405838956,1771351843581,-500.0,0.00012329,2]
[405838957,1771351843590,-5384.473729,0.00012331,2]
[405838958,1771351843599,-840.90433578,0.00012345,2]
[405838959,1771351843609,-185.29568935,0.00012348,2]
[405838960,1771351843619,-5209.65985741,0.00012348,2]
[405838961,1771351843628,-150.0,0.00012447,2]
[405838962,1771351843637,-500.0,0.00012447,2]
[405838963,1771351843647,-500.0,0.00012447,2]
[405838964,1771351843655,-150.0,0.00012447,2]
[405838965,1771351843665,-150.0,0.00012447,2]
[405838966,1771351843674,-150.0,0.00012447,2]
[405838967,1771351843683,-150.0,0.00012447,2]
[405838968,1771351843692,-500.0,0.00012447,2]
[405838969,1771351843701,-500.0,0.00012447,2]
[405838970,1771351843710,-150.0,0.00012447,2]
[405838971,1771351843718,-1000.0,0.00012448,2]
[405838972,1771351843727,-5530.0,0.000125,3]
[405838973,1771351843737,-500.0,0.00012502,2]
[405838974,1771351843746,-150.37957529,0.00012502,2]
[405838975,1771351843755,-500.0,0.00012502,2]
[405838976,1771351843764,-244.28993987,0.00012502,2]
[405838977,1771351843774,-150.0,0.00012502,2]
[405838978,1771351843783,-150.0,0.00012502,2]
[405838979,1771351843792,-150.0,0.00012502,2]
[405838980,1771351843801,-500.0,0.00012502,2]
[405838981,1771351843810,-500.0,0.00012502,2]
[405838982,1771351843820,-150.0,0.00012502,2]
[405838983,1771351843829,-152.12850518,0.00012557,2]
[405838984,1771351843838,-500.0,0.00012557,2]
[405838985,1771351843847,-150.0,0.00012557,2]
[405838986,1771351843856,-200.36674187,0.00012557,2]
[405838987,1771351843865,-200.18645604,0.00012557,2]
[405838988,1771351843874,-500.0,0.00012557,2]
[405838989,1771351843883,-500.0,0.00012557,2]
[405838990,1771351843892,-242.84628954,0.00012557,2]
[405838991,1771351843901,-500.0,0.00012603,2]
[405838992,1771351843910,-500.0,0.00012611,2]
[405838993,1771351843919,-200.89245722,0.00012611,2]
[405838994,1771351843927,-500.0,0.00012611,2]
[405838995,1771351843937,-500.0,0.00012611,2]
[405838996,1771351843946,-500.0,0.00012666,2]
[405838997,1771351843955,-500.0,0.00012666,2]
[405838998,1771351843964,-153.2248447,0.00012666,2]
[405838999,1771351843973,-1000.0,0.00012721,2]
[405839000,1771351843981,-1002.81524174,0.00012721,2]
[405839001,1771351843990,-571.65229745,0.00012721,2]
[405839002,1771351843999,-228.57891647,0.00012721,2]
[405839003,1771351844017,-1000.0,0.00012721,2]
[405839004,1771351844028,-1000.0,0.00012721,2]
[405839005,1771351844038,-1000.0,0.00012721,2]
[405839006,1771351844048,-1000.0,0.00012721,2]
[405839007,1771351844057,-544.40507509,0.00012721,2]
[405839008,1771351844067,-1013.94571317,0.00012721,2]
[405839009,1771351844080,-1000.0,0.00012721,2]
[405839010,1771351844090,-1000.0,0.00012721,2]
[405839011,1771351844100,-1000.0,0.00012721,2]
[405839012,1771351844112,-1000.0,0.00012721,2]
[405839013,1771351844122,-1000.0,0.00012721,2]
[405839014,1771351844131,-500.0,0.00012721,2]
[405839015,1771351844143,-1000.0,0.00012721,2]
[405839016,1771351844153,-1000.0,0.00012721,2]
[405839017,1771351844164,-1000.0,0.00012721,2]
[405839018,1771351844174,-1000.0,0.00012721,2]
[405839019,1771351844184,-615.3930462,0.00012721,2]
[405839020,1771351844195,-306.10762696,0.00012721,2]
[405839021,1771351844206,-1000.0,0.00012721,2]
[405839022,1771351844215,-1000.0,0.00012721,2]
[405839023,1771351844225,-501.82748142,0.00012721,2]
[405839024,1771351844236,-1000.0,0.00012721,2]
[405839025,1771351844246,-500.0,0.00012721,2]
[405839026,1771351844256,-500.0,0.00012721,2]
[405839027,1771351844266,-630.25617345,0.00012776,2]
[405839028,1771351844275,-500.0,0.00012776,2]
[405839029,1771351844284,-340.42784359,0.0001278,2]
[405839030,1771351844294,-173.57638878,0.0001279,2]
[405839031,1771351844303,-160.0,0.0001279,2]
[405839032,1771351844313,-500.0,0.00012831,2]
[405839033,1771351844324,-500.0,0.00012877,2]
[405839034,1771351844333,-500.0,0.00012885,2]
[405839035,1771351844343,-5530.0,0.000129,5]
[405839036,1771351844355,-500.0,0.0001294,2]
[405839037,1771351844365,-500.0,0.00012995,2]
[405839038,1771351844375,-76805.89310854,0.00013005,2]
[405839039,1771351844390,-163.51122534,0.0001305,2]
[405839040,1771351844400,-3758.098169,0.00013121,2]
[405839041,1771351844411,-4488.74151012,0.00013141,2]
[405839042,1771351844422,-500.0,0.00013151,2]
[405839043,1771351844432,-12649.0,0.00013245,2]
[405839044,1771351844444,-3965.0,0.00013247,2]
[405839045,1771351844453,-1500.0,0.00013268,2]
[405839046,1771351844463,-1500.0,0.00013268,2]
[405839047,1771351844473,-806.86059886,0.00013268,2]
[405839048,1771351844483,-592.40967882,0.00013268,2]
[405839049,1771351844493,-616.56100589,0.00013268,2]
[405839050,1771351844503,-1500.0,0.00013268,2]
[405839051,1771351844513,-1500.0,0.00013268,2]
[405839052,1771351844523,-1500.0,0.00013268,2]
[405839053,1771351844532,-744.95097778,0.00013268,2]
[405839054,1771351844542,-623.71743587,0.00013268,2]
[405839055,1771351844552,-1500.0,0.00013268,2]
[405839056,1771351844566,-1500.0,0.00013268,2]
[405839057,1771351844578,-1500.0,0.00013268,2]
[405839058,1771351844588,-1500.0,0.00013268,2]
[405839059,1771351844597,-1513.76878479,0.00013268,2]
[405839060,1771351844609,-932.93855102,0.00013268,2]
[405839061,1771351844619,-1000.0,0.00013268,2]
[405839062,1771351844629,-155.92203,0.00013321,2]
[405839063,1771351844639,-3240.0,0.00013425,2]
[405839064,1771351844649,-500.0,0.00013425,2]
[405839065,1771351844659,-500.0,0.00013621,2]
[405839066,1771351844668,-600.0,0.00013685,2]
[405839067,1771351844677,-500.0,0.00013698,2]
[405839068,1771351844687,-500.0,0.00013698,2]
[405839069,1771351844698,-500.0,0.00013698,2]
[405839070,1771351844708,-500.0,0.00013698,2]
[405839071,1771351844719,-500.0,0.00013698,2]
[405839072,1771351844729,-505.58518338,0.00013698,2]
[405839073,1771351844739,-500.0,0.00013698,2]
[405839074,1771351844748,-500.0,0.00013698,2]
[405839075,1771351844758,-500.0,0.00013698,2]
[405839076,1771351844771,-500.0,0.00013698,2]
[405839077,1771351844781,-500.0,0.00013698,2]
[405839078,1771351844792,-500.0,0.00013698,2]
[405839079,1771351844802,-500.0,0.00013698,2]
[405839080,1771351844812,-500.0,0.00013698,2]
[405839081,1771351844822,-500.0,0.00013698,2]
[405839082,1771351844832,-500.0,0.00013698,2]
[405839083,1771351844841,-500.0,0.00013698,2]
[405839084,1771351844851,-500.0,0.00013698,2]
[405839085,1771351844860,-500.0,0.00013698,2]
[405839086,1771351844870,-500.0,0.00013698,2]
[405839087,1771351844879,-474.03942024,0.00013698,2]
[405839088,1771351844889,-2052.7,0.00013698,2]
[405839089,1771351844899,-2052.7,0.00013698,2]
[405839090,1771351844908,-2052.7,0.00013698,2]
[405839091,1771351844917,-2052.7,0.00013698,2]
[405839092,1771351844927,-2052.7,0.00013698,2]
[405839093,1771351844937,-2052.7,0.00013698,2]
[405839094,1771351844947,-2052.7,0.00013698,2]
[405839095,1771351844960,-2052.7,0.00013698,2]
[405839096,1771351844970,-2052.7,0.00013698,2]
[405839097,1771351844980,-2052.7,0.00013698,2]
[405839098,1771351844990,-2052.7,0.00013698,2]
[405839099,1771351844999,-2052.7,0.00013698,2]
[405839100,1771351845009,-2052.7,0.00013698,2]
[405839101,1771351845019,-2052.7,0.00013698,2]
[405839102,1771351845029,-2052.7,0.00013698,2]
[405839103,1771351845039,-2052.7,0.00013698,2]
[405839104,1771351845048,-2052.7,0.00013698,2]
[405839105,1771351845058,-2052.7,0.00013698,2]
[405839106,1771351845070,-2052.7,0.00013698,2]
[405839107,1771351845080,-2052.7,0.00013698,2]
[405839108,1771351845089,-2052.7,0.00013698,2]
[405839109,1771351845099,-2052.7,0.00013698,2]
[405839110,1771351845111,-2052.7,0.00013698,2]
[405839111,1771351845120,-2052.77678348,0.00013698,2]
[405839112,1771351845130,-528.4390448,0.00013698,2]
[405839113,1771351845140,-500.0,0.00013698,2]
[405839114,1771351845153,-500.0,0.00013698,2]
[405839115,1771351845163,-500.0,0.00013698,2]
[405839116,1771351845172,-500.0,0.00013698,2]
[405839117,1771351845182,-500.0,0.00013698,2]
[405839118,1771351845191,-500.0,0.00013698,2]
[405839119,1771351845201,-500.0,0.00013698,2]
[405839120,1771351845211,-500.0,0.00013698,2]